[Event "European Amateur-ch U2000 2019"]
[Site "Rhodes"]
[Date "2019.04.14"]
[Round "9.8"]
[White "Wlogalski, Olivier"]
[Black "Petukhov, Igor"]
[Result "1-0"]
[ECO "A29"]
[WhiteElo "1853"]
[BlackElo "1819"]
[Annotator "NA"]
[PlyCount "71"]
[EventDate "2019.04.06"]
[EventType "swiss"]
[EventCountry "GRE"]
[SourceTitle "playchess.com"]
[Source "ChessBase"]
[SourceQuality "1"]
[TimeControl "40/5400+30:1800+30"]

1. c4 {[%emt 0:00:00]} e5 {[%emt 0:00:00]} 2. Nc3 {[%emt 0:00:00]} Nf6 {[%emt 0:00:00]} 3. Nf3 {[%emt 0:00:00]} Nc6 {[%emt 0:01:14]} 4. d3 {[%emt 0:00:00]} Be7 {[%emt 0:02:43]} 5. g3 {[%emt 0:00:14]} d5 {[%emt 0:00:44]} 6. cxd5 {[%emt 0:00:07]} Nxd5 {[%emt 0:00:08]} 7. Bd2 {[%emt 0:00:24]} Be6 {[%emt 0:02:20]} 8. Bg2 {[%emt 0:00:07]} f6 {[%emt 0:00:49]} 9. O-O {[%emt 0:00:11]} Nb6 {[%emt 0:01:21]} 10. a3 {[%emt 0:05:36]} O-O {[%emt 0:01:00]} 11. Rc1 {[%emt 0:00:23]} Nd4 {[%emt 0:00:54]} 12. Nxd4 {[%emt 0:01:47]} exd4 {[%emt 0:01:38]} 13. Na4 {[%emt 0:02:39]} Nxa4 {[%emt 0:10:08]} 14. Qxa4 {[%emt 0:00:06]} c6 {[%emt 0:00:31]} 15. Bb4 {[%emt 0:02:49]} Re8 {[%emt 0:06:30]} 16. Bxe7 {[%emt 0:00:59]} Rxe7 {[%emt 0:00:25]} 17. Rc5 {[%emt 0:03:06]} Bf7 {[%emt 0:19:00]} 18. Bf3 {[%emt 0:00:07]} Qd6 {[%emt 0:01:53]} 19. Rfc1 {[%emt 0:00:27]} h5 {[%emt 0:03:49]} 20. Bxh5 {[%emt 0:14:41]} Bxh5 {[%emt 0:00:16]} 21. Rxh5 {[%emt 0:00:13]} g6 {[%emt 0:05:10]} 22. Rh4 {[%emt 0:00:37]} Rd8 {[%emt 0:07:15]} 23. Qxa7 {[%emt 0:16:04]} g5 {[%emt 0:07:11]} 24. Re4 {[%emt 0:10:11]} Rc7 {[%emt 0:08:01]} 25. Rc5 {[%emt 0:03:03]} Rh7 {[%emt 0:04:52]} 26. Qb6 {[%emt 0:03:24]} Rb8 {[%emt 0:03:33]} 27. Rf5 {[%emt 0:00:49]} Kg7 {[%emt 0:04:39]} 28. Qxd4 {[%emt 0:01:27]} Qxd4 {[%emt 0:02:24]} 29. Rxd4 {[%emt 0:00:05]} Kg6 {[%emt 0:00:03]} 30. Ra5 {[%emt 0:00:26]} b6 {[%emt 0:01:37]} 31. Ra6 {[%emt 0:00:26]} c5 {[%emt 0:00:25]} 32. Re4 {[%emt 0:00:53]} Rbh8 {[%emt 0:01:00]} 33. h4 {[%emt 0:00:19]} gxh4 {[%emt 0:00:59]} 34. Rxh4 {[%emt 0:00:08]} Rxh4 {[%emt 0:00:11]} 35. gxh4 {[%emt 0:00:04]} Rxh4 {[%emt 0:00:19]} 36. Rxb6 {[%emt 0:00:03]} 1-0

[Event "European Amateur-ch U2000 2019"]
[Site "Rhodes"]
[Date "2019.04.14"]
[Round "9.9"]
[White "Mohnblatt, Nicolas"]
[Black "Minko, Olga"]
[Result "1/2-1/2"]
[ECO "D05"]
[WhiteElo "1685"]
[BlackElo "1833"]
[Annotator "NA"]
[PlyCount "81"]
[EventDate "2019.04.06"]
[EventType "swiss"]
[EventCountry "GRE"]
[SourceTitle "playchess.com"]
[Source "ChessBase"]
[SourceQuality "1"]
[TimeControl "40/5400+30:1800+30"]

1. d4 {[%emt 0:00:00]} d5 {[%emt 0:00:00]} 2. Nf3 {[%emt 0:00:00]} Nf6 {[%emt 0:00:00]} 3. e3 {[%emt 0:00:02]} e6 {[%emt 0:00:09]} 4. Bd3 {[%emt 0:00:20]} c5 {[%emt 0:01:05]} 5. c3 {[%emt 0:00:08]} Nbd7 {[%emt 0:01:33]} 6. Nbd2 {[%emt 0:00:35]} Be7 {[%emt 0:03:06]} 7. Qe2 {[%emt 0:03:02]} O-O {[%emt 0:04:18]} 8. e4 {[%emt 0:01:03]} dxe4 {[%emt 0:02:39]} 9. Nxe4 {[%emt 0:00:07]} Qc7 {[%emt 0:08:44]} 10. Bg5 {[%emt 0:17:01]} Re8 {[%emt 0:04:01]} 11. h4 {[%emt 0:03:39]} e5 {[%emt 0:08:49]} 12. dxe5 {[%emt 0:18:00]} Nxe5 {[%emt 0:00:49]} 13. Nxe5 {[%emt 0:10:24]} Qxe5 {[%emt 0:01:18]} 14. Nxf6+ {[%emt 0:00:12]} Bxf6 {[%emt 0:04:27]} 15. Bxf6 {[%emt 0:03:36]} Qxe2+ {[%emt 0:00:53]} 16. Bxe2 {[%emt 0:00:05]} gxf6 {[%emt 0:00:11]} 17. f3 {[%emt 0:00:43]} Bf5 {[%emt 0:00:46]} 18. Kf2 {[%emt 0:00:49]} Rad8 {[%emt 0:01:13]} 19. Rad1 {[%emt 0:00:23]} Bc2 {[%emt 0:00:55]} 20. Rxd8 {[%emt 0:00:18]} Rxd8 {[%emt 0:00:08]} 21. Rc1 {[%emt 0:00:13]} Ba4 {[%emt 0:02:53]} 22. b3 {[%emt 0:00:29]} Bc6 {[%emt 0:00:49]} 23. Rc2 {[%emt 0:01:08]} a5 {[%emt 0:03:45]} 24. a3 {[%emt 0:07:00]} Rd5 {[%emt 0:00:31]} 25. Ke3 {[%emt 0:08:18]} Kf8 {[%emt 0:00:33]} 26. Rd2 {[%emt 0:00:51]} Re5+ {[%emt 0:02:56]} 27. Kf2 {[%emt 0:01:31]} Ke7 {[%emt 0:03:33]} 28. f4 {[%emt 0:00:00]} Rd5 {[%emt 0:18:40]} 29. Rxd5 {[%emt 0:00:00]} Bxd5 {[%emt 0:00:06]} 30. b4 {[%emt 0:00:00]} cxb4 {[%emt 0:01:29]} 31. cxb4 {[%emt 0:00:00]} axb4 {[%emt 0:00:35]} 32. axb4 {[%emt 0:00:00]} Kd6 {[%emt 0:01:38]} 33. g3 {[%emt 0:00:00]} Be6 {[%emt 0:01:04]} 34. Bf3 {[%emt 0:00:00]} b6 {[%emt 0:00:26]} 35. Ke3 {[%emt 0:00:00]} f5 {[%emt 0:00:51]} 36. Kd4 {[%emt 0:00:00]} f6 {[%emt 0:01:09]} 37. Be2 {[%emt 0:00:00]} Kc6 {[%emt 0:04:17]} 38. Bd3 {[%emt 0:00:48]} h6 {[%emt 0:02:33]} 39. Be2 {[%emt 0:02:07]} Kd6 {[%emt 0:00:51]} 40. Bd3 {[%emt 0:00:00]} Kc6 {[%emt 0:00:00]} 41. Be2 {[%emt 0:00:23] Kd5+ [%emt 00:00:12]} 1/2-1/2